fUSD/lending_fUSD_20240104
["ID","MTS","AMOUNT","RATE_DAILY","PERIOD"]
[310155223,1704384662827,-3795.31,0.00033424,2]
[310155224,1704384662837,-500.0,0.00033424,2]
[310155225,1704384662848,-941.09,0.00033424,2]
[310155226,1704384662858,-744.5,0.00033424,2]
[310155227,1704384662868,-40011.89,0.00033424,2]
[310155228,1704384662879,-680.9,0.00033424,2]
[310155229,1704384662891,-4440.8,0.00033424,2]
[310155230,1704384662902,-3124.54,0.00033424,2]
[310155231,1704384662913,-575.77,0.00033424,2]
[310155232,1704384662923,-500.0,0.00033424,2]
[310155233,1704384662935,-500.0,0.00033424,2]
[310155234,1704384662945,-529.49,0.00033424,2]
[310155235,1704384662958,-500.0,0.00033424,2]
[310155236,1704384662969,-500.0,0.00033424,2]
[310155237,1704384662980,-500.0,0.00033424,2]
[310155238,1704384662993,-500.0,0.00033424,2]
[310155239,1704384663005,-500.0,0.00033424,2]
[310155240,1704384663015,-500.0,0.00033424,2]
[310155241,1704384663026,-566.18,0.00033424,2]
[310155242,1704384663038,-500.0,0.00033424,2]
[310155243,1704384663047,-500.0,0.00033424,2]
[310155244,1704384663058,-1254.54,0.00033424,2]
[310155245,1704384663081,-500.0,0.00033424,2]
[310155246,1704384663095,-500.0,0.00033424,2]
[310155247,1704384663107,-11794.58,0.00033424,2]
[310155248,1704384663117,-1416.07,0.00033424,2]
[310155249,1704384663128,-500.0,0.00033424,2]
[310155250,1704384663140,-500.0,0.00033424,2]
[310155251,1704384663151,-500.0,0.00033424,2]
[310155252,1704384663162,-1935.18,0.00033424,2]
[310155253,1704384663173,-500.0,0.00033424,2]
[310155254,1704384663183,-500.0,0.00033424,2]
[310155255,1704384663194,-500.0,0.00033424,2]
[310155256,1704384663205,-500.0,0.00033424,2]
[310155257,1704384663216,-500.0,0.00033424,2]
[310155258,1704384663227,-2189.6,0.00033424,2]
[310155259,1704384663238,-500.0,0.00033424,2]
[310155260,1704384663249,-500.0,0.00033424,2]
[310155261,1704384663263,-500.0,0.00033424,2]
[310155262,1704384663275,-1093.1,0.00033424,2]
[310155263,1704384663288,-500.0,0.00033424,2]
[310155264,1704384663300,-746.5,0.00033424,2]
[310155265,1704384663312,-500.0,0.00033424,2]
[310155266,1704384663326,-581.35527303,0.00033424,2]
[310155267,1704384663336,-1922.89,0.00033424,2]
[310155268,1704384663348,-500.0,0.00033424,2]
[310155269,1704384663361,-500.0,0.00033424,2]
[310155270,1704384663372,-500.0,0.00033424,2]
[310155271,1704384663383,-500.0,0.00033424,2]
[310155272,1704384663394,-3029.2,0.00033424,2]
[310155273,1704384663406,-1065.96,0.00033424,2]
[310155274,1704384663418,-1007.95,0.00033424,2]
[310155275,1704384663429,-11096.0,0.00033424,2]
[310155276,1704384663441,-500.0,0.00033424,2]
[310155277,1704384663453,-747.54,0.00033424,2]
[310155278,1704384663464,-760.32,0.00033424,2]
[310155279,1704384663476,-12156.16,0.00033424,2]
[310155280,1704384663486,-500.0,0.00033424,2]
[310155281,1704384663497,-834.78,0.00033424,2]
[310155282,1704384663508,-1718.28,0.00033424,2]
[310155283,1704384663521,-611.3,0.00033424,2]
[310155284,1704384663533,-697.33,0.00033424,2]
[310155285,1704384663545,-1413.99,0.00033424,2]
[310155286,1704384663558,-697.67,0.00033424,2]
[310155287,1704384663571,-1281.58,0.00033424,2]
[310155288,1704384663582,-1163.39,0.00033424,2]
[310155289,1704384663595,-520.32,0.00033424,2]
[310155290,1704384663606,-883.92,0.00033424,2]
[310155291,1704384663616,-500.0,0.00033424,2]
[310155292,1704384663626,-1053.47,0.00033424,2]
[310155293,1704384663636,-726.31,0.00033424,2]
[310155294,1704384663647,-773.87,0.00033424,2]
[310155295,1704384663658,-3994.67,0.00033424,2]
[310155296,1704384663668,-500.0,0.00033424,2]
[310155297,1704384663679,-891.04,0.00033424,2]
[310155298,1704384663690,-528.67,0.00033424,2]
[310155299,1704384663701,-902.18,0.00033424,2]
[310155300,1704384663711,-2976.44,0.00033424,2]
[310155301,1704384663722,-1129.74,0.00033424,2]
[310155302,1704384663733,-500.0,0.00033424,2]
[310155303,1704384663744,-500.0,0.00033424,2]
[310155304,1704384663756,-8714.16,0.00033424,2]
[310155305,1704384663767,-500.0,0.00033424,2]
[310155306,1704384663777,-709.87,0.00033424,2]
[310155307,1704384663788,-500.0,0.00033424,2]
[310155308,1704384663798,-573.28,0.00033424,2]
[310155309,1704384663809,-617.6,0.00033424,2]
[310155310,1704384663820,-539.92,0.00033424,2]
[310155311,1704384663830,-500.0,0.00033424,2]
[310155312,1704384663840,-2912.75,0.00033424,2]
[310155313,1704384663851,-2375.82,0.00033424,2]
[310155314,1704384663861,-500.0,0.00033424,2]
[310155315,1704384663872,-500.0,0.00033424,2]
[310155316,1704384663882,-880.41,0.00033424,2]
[310155317,1704384663892,-500.0,0.00033424,2]
[310155318,1704384663902,-990.05,0.00033424,2]
[310155319,1704384663917,-712.84,0.00033424,2]
[310155320,1704384663928,-500.0,0.00033424,2]
[310155321,1704384663940,-500.0,0.00033424,2]
[310155322,1704384663951,-704.89,0.00033424,2]
[310155323,1704384663963,-1899.71,0.00033424,2]
[310155324,1704384663974,-1360.68,0.00033424,2]
[310155325,1704384663985,-1752.91,0.00033424,2]
[310155326,1704384663996,-846.97,0.00033424,2]
[310155327,1704384664008,-500.0,0.00033424,2]
[310155328,1704384664019,-4094.39,0.00033424,2]
[310155329,1704384664030,-500.0,0.00033424,2]
[310155330,1704384664042,-500.0,0.00033424,2]
[310155331,1704384664053,-1446.57,0.00033424,2]
[310155332,1704384664065,-205.1532391,0.00033424,2]
[310155333,1704384664077,-561.91,0.00033424,2]
[310155334,1704384664089,-1589.28,0.00033424,2]
[310155335,1704384664100,-500.0,0.00033424,2]
[310155336,1704384664111,-1546.98,0.00033424,2]
[310155337,1704384664122,-500.0,0.00033424,2]
[310155338,1704384664133,-834.84,0.00033424,2]
[310155339,1704384664143,-500.0,0.00033424,2]
[310155340,1704384664154,-1093.14,0.00033424,2]
[310155341,1704384664165,-564.13,0.00033424,2]
[310155342,1704384664176,-2073.94,0.00033424,2]
[310155343,1704384664187,-1945.09,0.00033424,2]
[310155344,1704384664198,-893.8,0.00033424,2]
[310155345,1704384664209,-900.7,0.00033424,2]
[310155346,1704384664221,-12496.39,0.00033424,2]
[310155347,1704384664232,-561.96,0.00033424,2]
[310155348,1704384664243,-1450.8,0.00033424,2]
[310155349,1704384664254,-514.0,0.00033424,2]
[310155350,1704384664265,-3417.84,0.00033424,2]
[310155351,1704384664277,-500.0,0.00033424,2]
[310155352,1704384664287,-500.0,0.00033424,2]
[310155353,1704384664299,-1205.79,0.00033424,2]
[310155354,1704384664311,-500.0,0.00033424,2]
[310155355,1704384664326,-621.58,0.00033424,2]
[310155356,1704384664338,-500.0,0.00033424,2]
[310155357,1704384664352,-881.27,0.00033424,2]
[310155358,1704384664363,-10382.29,0.00033424,2]
[310155359,1704384664375,-2270.39,0.00033424,2]
[310155360,1704384664386,-500.0,0.00033424,2]
[310155361,1704384664397,-578.21,0.00033424,2]
[310155362,1704384664408,-987.12,0.00033424,2]
[310155363,1704384664420,-1396.67,0.00033424,2]
[310155364,1704384664431,-552.04,0.00033424,2]
[310155365,1704384664443,-656.43,0.00033424,2]
[310155366,1704384664454,-940.22,0.00033424,2]
[310155367,1704384664465,-500.0,0.00033424,2]
[310155368,1704384664476,-1079.52,0.00033424,2]
[310155369,1704384664487,-1439.1,0.00033424,2]
[310155370,1704384664497,-500.0,0.00033424,2]
[310155371,1704384664508,-500.0,0.00033424,2]
[310155372,1704384664519,-500.0,0.00033424,2]
[310155373,1704384664532,-500.0,0.00033424,2]
[310155374,1704384664542,-1088.28,0.00033424,2]
[310155375,1704384664554,-5839.49,0.00033424,2]
[310155376,1704384664565,-1535.77,0.00033424,2]
[310155377,1704384664580,-1904.93,0.00033424,2]
[310155378,1704384664591,-500.0,0.00033424,2]
[310155379,1704384664602,-1236.96,0.00033424,2]
[310155380,1704384664612,-500.0,0.00033424,2]
[310155381,1704384664623,-500.0,0.00033424,2]
[310155382,1704384664633,-3487.16,0.00033424,2]
[310155383,1704384664643,-4880.8,0.00033424,2]
[310155384,1704384664653,-500.0,0.00033424,2]
[310155385,1704384664663,-568.13,0.00033424,2]
[310155386,1704384664674,-745.3,0.00033424,2]
[310155387,1704384664685,-2004.58,0.00033424,2]
[310155388,1704384664695,-809.18,0.00033424,2]
[310155389,1704384664706,-8885.11,0.00033424,2]
[310155390,1704384664716,-1186.38,0.00033424,2]
[310155391,1704384664727,-500.0,0.00033424,2]
[310155392,1704384664738,-500.0,0.00033424,2]
[310155393,1704384664748,-1779.45,0.00033424,2]
[310155394,1704384664760,-1353.33,0.00033424,2]
[310155395,1704384664771,-1121.93,0.00033424,2]
[310155396,1704384664781,-500.0,0.00033424,2]
[310155397,1704384664791,-151.0,0.00033424,7]
[310155398,1704384664802,-259.999034,0.00033424,7]
[310155399,1704384664812,-151.0,0.00033424,7]
[310155400,1704384664824,-151.0,0.00033424,7]
[310155401,1704384664834,-16530.0,0.00033425,4]
[310155402,1704384664844,-583.14,0.00033456,2]
[310155403,1704384664854,-1469.27,0.000335,2]
[310155404,1704384664865,-1469.27,0.000335,2]
[310155405,1704384664875,-1469.27,0.000335,2]
[310155406,1704384664886,-1469.27,0.000335,2]
[310155407,1704384664896,-1469.27,0.000335,2]
[310155408,1704384664907,-1469.27,0.000335,2]
[310155409,1704384664918,-1469.27,0.000335,2]
[310155410,1704384664931,-1469.27,0.000335,2]
[310155411,1704384664941,-1469.27,0.000335,2]
[310155412,1704384664951,-1469.27,0.000335,2]
[310155413,1704384664962,-1469.27,0.000335,2]
[310155414,1704384664972,-1469.27,0.000335,2]
[310155415,1704384664983,-1469.27,0.000335,2]
[310155416,1704384664993,-1469.27,0.000335,2]
[310155417,1704384665004,-1469.27,0.000335,2]
[310155418,1704384665015,-1469.27,0.000335,2]
[310155419,1704384665025,-1469.27,0.000335,2]
[310155420,1704384665035,-1469.27,0.000335,2]
[310155421,1704384665046,-1469.27,0.000335,2]
[310155422,1704384665057,-1469.27,0.000335,2]
[310155423,1704384665068,-4372.6,0.000336,2]
[310155424,1704384665079,-1174.91847484,0.00033629,2]
[310155425,1704384665089,-15242.68080386,0.00033629,2]
[310155426,1704384665100,-500.0,0.00033697,2]
[310155427,1704384665110,-1667.8,0.00033697,2]
[310155428,1704384665121,-1667.8,0.00033697,2]
[310155429,1704384665132,-575.28,0.00033697,2]
[310155430,1704384665142,-500.0,0.00033698,2]
[310155431,1704384665152,-190.97229913,0.00033698,2]
[310155432,1704384665163,-500.0,0.00033698,2]
[310155433,1704384665173,-500.0,0.00033698,2]
[310155434,1704384665184,-500.0,0.00033698,2]
[310155435,1704384665195,-500.0,0.00033698,2]
[310155436,1704384665206,-500.0,0.00033698,2]
[310155437,1704384665216,-500.0,0.00033698,2]
[310155438,1704384665230,-768.69,0.00033698,2]
[310155439,1704384665244,-589.83,0.00033698,2]
[310155440,1704384665586,-603.66,0.00033698,2]
[310155441,1704384665596,-1000.0,0.00033698,2]
[310155442,1704384665606,-500.0,0.00033698,2]
[310155443,1704384665615,-500.0,0.00033698,2]
[310155444,1704384665624,-599.73,0.00033698,2]
[310155445,1704384665634,-609.87,0.00033698,2]
[310155446,1704384665644,-500.0,0.00033698,2]
[310155447,1704384665653,-500.0,0.00033698,2]
[310155448,1704384665663,-500.0,0.00033698,2]
[310155449,1704384665672,-500.0,0.00033698,2]
[310155450,1704384665682,-500.0,0.00033698,2]
[310155451,1704384665691,-607.88,0.00033698,2]
[310155452,1704384665701,-500.0,0.00033698,2]
[310155453,1704384665710,-580.83514956,0.00033698,2]
[310155454,1704384665720,-500.0,0.00033698,2]
[310155455,1704384665730,-500.0,0.00033698,2]
[310155456,1704384665740,-500.0,0.00033698,2]
[310155457,1704384665749,-500.0,0.00033698,2]
[310155458,1704384665759,-500.0,0.00033698,2]
[310155459,1704384665769,-911.18,0.00033698,2]
[310155460,1704384665779,-500.0,0.00033698,2]
[310155461,1704384665789,-500.0,0.00033698,2]
[310155462,1704384665800,-500.0,0.00033698,2]
[310155463,1704384665809,-500.0,0.00033698,2]
[310155464,1704384665821,-500.0,0.00033698,2]
[310155465,1704384665831,-500.0,0.00033698,2]
[310155466,1704384665842,-718.24,0.00033698,2]
[310155467,1704384665852,-690.39,0.00033698,2]
[310155468,1704384665862,-500.0,0.00033698,2]
[310155469,1704384665873,-500.0,0.00033698,2]
[310155470,1704384665883,-712.49,0.00033698,2]
[310155471,1704384665893,-500.0,0.00033698,2]
[310155472,1704384665903,-500.0,0.00033698,2]
[310155473,1704384665912,-500.0,0.00033698,2]
[310155474,1704384665922,-302.51099028,0.00033698,2]
[310155475,1704384665932,-582.68,0.00033698,2]
[310155476,1704384665942,-500.0,0.00033698,2]
[310155477,1704384665952,-500.0,0.00033698,2]
[310155478,1704384665962,-375.11792916,0.00033698,2]
[310155479,1704384665972,-500.0,0.00033698,2]
[310155480,1704384665982,-500.0,0.00033698,2]
[310155481,1704384665991,-1117.06,0.00033698,2]
[310155482,1704384666002,-500.0,0.00033698,2]
[310155483,1704384666012,-167.38257309,0.00033698,2]
[310155484,1704384666022,-500.0,0.00033698,2]
[310155485,1704384666032,-500.0,0.00033698,2]
[310155486,1704384666042,-500.0,0.00033698,2]
[310155487,1704384666052,-585.66,0.00033698,2]
[310155488,1704384666062,-500.0,0.00033698,2]
[310155489,1704384666074,-500.0,0.00033698,2]
[310155490,1704384666084,-789.66,0.00033698,2]
[310155491,1704384666094,-500.0,0.00033698,2]
[310155492,1704384666105,-500.0,0.00033698,2]
[310155493,1704384666115,-500.0,0.00033698,2]
[310155494,1704384666125,-500.0,0.00033698,2]
[310155495,1704384666135,-500.0,0.00033698,2]
[310155496,1704384666146,-500.0,0.00033698,2]
[310155497,1704384666157,-500.0,0.00033698,2]
[310155498,1704384666167,-500.0,0.00033698,2]
[310155499,1704384666177,-500.0,0.00033698,2]
[310155500,1704384666187,-500.0,0.00033698,2]
[310155501,1704384666197,-500.0,0.00033698,2]
[310155502,1704384666207,-500.0,0.00033698,2]
[310155503,1704384666217,-500.0,0.00033698,2]
[310155504,1704384666227,-500.0,0.00033698,2]
[310155505,1704384666236,-500.0,0.00033698,2]
[310155506,1704384666246,-500.0,0.00033698,2]
[310155507,1704384666256,-867.28,0.00033698,2]
[310155508,1704384666266,-764.44,0.00033698,2]
[310155509,1704384666276,-883.27,0.00033698,2]
[310155510,1704384666286,-500.0,0.00033698,2]
[310155511,1704384666296,-500.0,0.00033698,2]
[310155512,1704384666307,-500.0,0.00033698,2]
[310155513,1704384666316,-842.43,0.00033698,2]
[310155514,1704384666327,-500.0,0.00033698,2]
[310155515,1704384666337,-682.97,0.00033698,2]
[310155516,1704384666347,-500.0,0.00033698,2]
[310155517,1704384666357,-500.0,0.00033698,2]
[310155518,1704384666366,-500.0,0.00033698,2]
[310155519,1704384666379,-500.0,0.00033698,2]
[310155520,1704384666389,-500.0,0.00033698,2]
[310155521,1704384666399,-500.0,0.00033698,2]
[310155522,1704384666408,-670.92,0.00033698,2]
[310155523,1704384666417,-500.0,0.00033698,2]
[310155524,1704384666427,-500.0,0.00033698,2]
[310155525,1704384666437,-1005.13,0.00033698,2]
[310155526,1704384666448,-500.0,0.00033698,2]
[310155527,1704384666458,-500.0,0.00033698,2]
[310155528,1704384666468,-1406.92,0.00033698,2]
[310155529,1704384666488,-725.93,0.00033698,2]
[310155530,1704384666501,-500.0,0.00033698,2]
[310155531,1704384666511,-500.0,0.00033698,2]
[310155532,1704384666522,-699.62,0.00033698,2]
[310155533,1704384666534,-1117.49,0.00033698,2]
[310155534,1704384666545,-674.55,0.00033698,2]
[310155535,1704384666556,-500.0,0.00033698,2]
[310155536,1704384666570,-677.2,0.00033698,2]
[310155537,1704384666581,-487.0764148,0.00033698,2]
[310155538,1704384666593,-500.0,0.00033698,2]
[310155539,1704384666604,-500.0,0.00033698,2]
[310155540,1704384666615,-500.0,0.00033698,2]
[310155541,1704384666625,-500.0,0.00033698,2]
[310155542,1704384666636,-782.63,0.00033698,2]
[310155543,1704384666647,-500.0,0.00033698,2]
[310155544,1704384666657,-500.0,0.00033698,2]
[310155545,1704384666668,-510.31,0.00033698,2]
[310155546,1704384666678,-901.96,0.00033698,2]
[310155547,1704384666689,-500.0,0.00033698,2]
[310155548,1704384666699,-662.32,0.00033698,2]
[310155549,1704384666710,-830.54,0.00033698,2]
[310155550,1704384666720,-500.0,0.00033698,2]
[310155551,1704384666730,-500.0,0.00033698,2]
[310155552,1704384666740,-500.0,0.00033698,2]
[310155553,1704384666750,-1824.67,0.00033698,2]
[310155554,1704384666760,-500.0,0.00033698,2]
[310155555,1704384666771,-931.95,0.00033698,2]
[310155556,1704384666781,-500.0,0.00033698,2]
[310155557,1704384666791,-500.0,0.00033698,2]
[310155558,1704384666802,-500.0,0.00033698,2]
[310155559,1704384666814,-500.0,0.00033698,2]
[310155560,1704384666826,-500.0,0.00033698,2]
[310155561,1704384666836,-654.3,0.00033698,2]
[310155562,1704384666846,-500.0,0.00033698,2]
[310155563,1704384666857,-500.0,0.00033698,2]
[310155564,1704384666867,-500.0,0.00033698,2]
[310155565,1704384666877,-375.34665378,0.00033698,2]
[310155566,1704384666888,-1130.23,0.00033698,2]
[310155567,1704384666898,-500.0,0.00033698,2]
[310155568,1704384666908,-500.0,0.00033698,2]
[310155569,1704384666918,-559.43,0.00033698,2]
[310155570,1704384666928,-500.0,0.00033698,2]
[310155571,1704384666938,-500.0,0.00033698,2]
[310155572,1704384666948,-1026.82,0.00033698,2]
[310155573,1704384666958,-500.0,0.00033698,2]
[310155574,1704384666968,-500.0,0.00033698,2]
[310155575,1704384666978,-586.09,0.00033698,2]
[310155576,1704384666988,-500.0,0.00033698,2]
[310155577,1704384666998,-574.52,0.00033698,2]
[310155578,1704384667008,-622.68,0.00033698,2]
[310155579,1704384667018,-593.19,0.00033698,2]
[310155580,1704384667027,-633.75,0.00033698,2]
[310155581,1704384667037,-500.0,0.00033698,2]
[310155582,1704384667047,-731.33,0.00033698,2]
[310155583,1704384667057,-756.82,0.00033698,2]
[310155584,1704384667067,-500.0,0.00033698,2]
[310155585,1704384667077,-500.0,0.00033698,2]
[310155586,1704384667087,-500.0,0.00033698,2]
[310155587,1704384667098,-500.0,0.00033698,2]
[310155588,1704384667108,-500.0,0.00033698,2]
[310155589,1704384667118,-812.26,0.00033698,2]
[310155590,1704384667128,-642.48,0.00033698,2]
[310155591,1704384667139,-500.0,0.00033698,2]
[310155592,1704384667149,-500.0,0.00033698,2]
[310155593,1704384667160,-995.06,0.00033698,2]
[310155594,1704384667171,-647.0,0.00033698,2]
[310155595,1704384667181,-1428.61,0.00033698,2]
[310155596,1704384667192,-500.0,0.00033698,2]
[310155597,1704384667202,-737.41,0.00033698,2]
[310155598,1704384667213,-500.0,0.00033698,2]
[310155599,1704384667224,-500.0,0.00033698,2]
[310155600,1704384667234,-719.19,0.00033698,2]
[310155601,1704384667244,-500.0,0.00033698,2]
[310155602,1704384667254,-966.27,0.00033698,2]
[310155603,1704384667264,-500.0,0.00033698,2]
[310155604,1704384667274,-178.05101579,0.00033698,2]
[310155605,1704384667285,-197.42094606,0.00033698,2]
[310155606,1704384667295,-708.7,0.00033698,2]
[310155607,1704384667306,-683.25,0.00033698,2]
[310155608,1704384667316,-500.0,0.00033698,2]
[310155609,1704384667329,-1313.57,0.00033698,2]
[310155610,1704384667338,-500.0,0.00033698,2]
[310155611,1704384667349,-537.81,0.00033698,2]
[310155612,1704384667362,-978.7,0.00033698,2]
[310155613,1704384667371,-500.0,0.00033698,2]
[310155614,1704384667381,-500.0,0.00033698,2]
[310155615,1704384667390,-855.47,0.00033698,2]
[310155616,1704384667400,-500.0,0.00033698,2]
[310155617,1704384667410,-500.0,0.00033698,2]
[310155618,1704384667420,-500.0,0.00033698,2]
[310155619,1704384667430,-504.3,0.00033698,2]
[310155620,1704384667441,-758.78,0.00033698,2]
[310155621,1704384667452,-500.0,0.00033698,2]
[310155622,1704384667462,-500.0,0.00033698,2]
[310155623,1704384667472,-500.0,0.00033698,2]
[310155624,1704384667482,-500.0,0.00033698,2]
[310155625,1704384667493,-500.0,0.00033698,2]
[310155626,1704384667503,-500.0,0.00033698,2]
[310155627,1704384667514,-500.0,0.00033698,2]
[310155628,1704384667523,-1007.26,0.00033698,2]
[310155629,1704384667533,-500.0,0.00033698,2]
[310155630,1704384667543,-500.0,0.00033698,2]
[310155631,1704384667553,-500.0,0.00033698,2]
[310155632,1704384667563,-500.0,0.00033698,2]
[310155633,1704384667574,-691.87,0.00033698,2]
[310155634,1704384667583,-944.11,0.00033698,2]
[310155635,1704384667593,-500.0,0.00033698,2]
[310155636,1704384667603,-1634.31,0.00033698,2]
[310155637,1704384667614,-1332.99,0.00033698,2]
[310155638,1704384667624,-500.0,0.00033698,2]
[310155639,1704384667634,-500.0,0.00033698,2]
[310155640,1704384667645,-1233.69,0.00033698,2]
[310155641,1704384667655,-500.0,0.00033698,2]
[310155642,1704384667665,-1754.71,0.00033698,2]
[310155643,1704384667674,-650.36,0.00033698,2]
[310155644,1704384667684,-500.0,0.00033698,2]
[310155645,1704384667695,-602.68,0.00033698,2]
[310155646,1704384667705,-1493.68,0.00033698,2]
[310155647,1704384667714,-500.0,0.00033698,2]
[310155648,1704384667724,-500.0,0.00033698,2]
[310155649,1704384667734,-705.76,0.00033698,2]
[310155650,1704384667743,-1386.7,0.00033698,2]
[310155651,1704384667753,-1253.93,0.00033698,2]
[310155652,1704384667762,-500.0,0.00033698,2]
[310155653,1704384667772,-500.0,0.00033698,2]
[310155654,1704384667782,-712.45,0.00033698,2]
[310155655,1704384667792,-1385.49,0.00033698,2]
[310155656,1704384667802,-719.5,0.00033698,2]
[310155657,1704384667811,-795.9,0.00033698,2]
[310155658,1704384667822,-614.02,0.00033698,2]
[310155659,1704384667831,-500.0,0.00033698,2]
[310155660,1704384667843,-500.0,0.00033698,2]
[310155661,1704384667853,-702.74,0.00033698,2]
[310155662,1704384667862,-2346.06,0.00033698,2]
[310155663,1704384667871,-782.01,0.00033698,2]
[310155664,1704384667880,-1144.21,0.00033698,2]
[310155665,1704384667890,-500.0,0.00033698,2]
[310155666,1704384667899,-825.04,0.00033698,2]
[310155667,1704384667909,-759.74,0.00033698,2]
[310155668,1704384667918,-500.0,0.00033698,2]
[310155669,1704384667928,-591.92,0.00033698,2]
[310155670,1704384667938,-500.0,0.00033698,2]
[310155671,1704384667947,-500.0,0.00033698,2]
[310155672,1704384667957,-1538.71,0.00033698,2]
[310155673,1704384667967,-500.0,0.00033698,2]
[310155674,1704384667976,-1209.37,0.00033698,2]
[310155675,1704384668081,-500.0,0.00033698,2]
[310155676,1704384668091,-1769.02,0.00033698,2]
[310155677,1704384668101,-500.0,0.00033698,2]
[310155678,1704384668110,-500.0,0.00033698,2]
[310155679,1704384668120,-1608.02,0.00033698,2]
[310155680,1704384668129,-1312.71,0.00033698,2]
[310155681,1704384668138,-500.0,0.00033698,2]
[310155682,1704384668147,-866.14,0.00033698,2]
[310155683,1704384668156,-500.0,0.00033698,2]
[310155684,1704384668165,-3238.36,0.00033698,2]
[310155685,1704384668175,-597.7,0.00033698,2]
[310155686,1704384668184,-500.0,0.00033698,2]
[310155687,1704384668193,-758.49,0.00033698,2]
[310155688,1704384668203,-861.13,0.00033698,2]
[310155689,1704384668212,-554.04,0.00033698,2]
[310155690,1704384668222,-500.0,0.00033698,2]
[310155691,1704384668231,-500.0,0.00033698,2]
[310155692,1704384668241,-910.85,0.00033698,2]
[310155693,1704384668250,-596.22,0.00033698,2]
[310155694,1704384668260,-647.07,0.00033698,2]
[310155695,1704384668269,-840.62,0.00033698,2]
[310155696,1704384668279,-552.48,0.00033698,2]
[310155697,1704384668288,-957.37,0.00033698,2]
[310155698,1704384668297,-859.39,0.00033698,2]
[310155699,1704384668307,-500.0,0.00033698,2]
[310155700,1704384668317,-1225.89,0.00033698,2]
[310155701,1704384668328,-562.44,0.00033698,2]
[310155702,1704384668338,-765.17,0.00033698,2]
[310155703,1704384668349,-659.69,0.00033698,2]
[310155704,1704384668358,-500.0,0.00033698,2]
[310155705,1704384668368,-500.0,0.00033698,2]
[310155706,1704384668378,-1445.4,0.00033698,2]
[310155707,1704384668388,-704.58,0.00033698,2]
[310155708,1704384668398,-500.0,0.00033698,2]
[310155709,1704384668407,-616.78,0.00033698,2]
[310155710,1704384668417,-500.0,0.00033698,2]
[310155711,1704384668427,-683.51,0.00033698,2]
[310155712,1704384668435,-661.23,0.00033698,2]
[310155713,1704384668445,-529.83,0.00033698,2]
[310155714,1704384668455,-500.0,0.00033698,2]
[310155715,1704384668465,-500.0,0.00033698,2]
[310155716,1704384668475,-500.0,0.00033698,2]
[310155717,1704384668485,-782.54,0.00033698,2]
[310155718,1704384668494,-588.15,0.00033698,2]
[310155719,1704384668504,-1195.11,0.00033698,2]
[310155720,1704384668514,-674.54,0.00033698,2]
[310155721,1704384668523,-1310.86,0.00033698,2]
[310155722,1704384668533,-831.54,0.00033698,2]